[Event "Titled Tuesday Blitz February 21 Late 2023"]
[White "Ladopoulos, Dimitrios"]
[Black "Bortnyk, Olexandr"]
[WhiteFideId "4239580"]
[BlackFideId "14120828"]
[WhiteElo "2391"]
[BlackElo "2605"]
[Result "0-1"]
[Round "02"]
[TimeControl "180+2"]
[Date "2023.02.21"]
[WhiteClock "0:00:03"]
[BlackClock "0:00:33"]

1. d4 {[%clk 0:02:55]}  d6 {[%clk 0:02:59]} 2. Nf3 {[%clk 0:02:51]}  Nf6 {[%clk 0:02:59]} 3. g3 {[%clk 0:02:51]}  g6 {[%clk 0:02:59]} 4. Bg2 {[%clk 0:02:51]}  Bg7 {[%clk 0:03:00]} 5. O-O {[%clk 0:02:51]}  O-O {[%clk 0:03:01]} 6. c4 {[%clk 0:02:52]}  Bf5 {[%clk 0:03:01]} 7. h3 {[%clk 0:02:51]}  c5 {[%clk 0:02:54]} 8. d5 {[%clk 0:02:36]}  b5 {[%clk 0:02:50]} 9. cxb5 {[%clk 0:02:33]}  a6 {[%clk 0:02:50]} 10. bxa6 {[%clk 0:02:26]}  Nxa6 {[%clk 0:02:51]} 11. Nfd2 {[%clk 0:02:22]}  Nb4 {[%clk 0:02:45]} 12. Na3 {[%clk 0:01:59]}  Qc8 {[%clk 0:02:11]} 13. g4 {[%clk 0:01:42]}  Bd7 {[%clk 0:02:09]} 14. Nac4 {[%clk 0:01:41]}  Nfxd5 {[%clk 0:02:06]} 15. e4 {[%clk 0:01:40]}  Nf4 {[%clk 0:01:59]} 16. Nb6 {[%clk 0:01:40]}  Qb7 {[%clk 0:01:57]} 17. Nxa8 {[%clk 0:01:35]}  Rxa8 {[%clk 0:01:58]} 18. a3 {[%clk 0:01:05]}  Bb5 {[%clk 0:01:36]} 19. Re1 {[%clk 0:00:50]}  Nbd3 {[%clk 0:01:36]} 20. Re3 {[%clk 0:00:46]}  Bd4 {[%clk 0:01:36]} 21. Rf3 {[%clk 0:00:08]}  Nxc1 {[%clk 0:01:33]} 22. Rxc1 {[%clk 0:00:05]}  Ne2+ {[%clk 0:01:18]} 23. Kh1 {[%clk 0:00:05]}  Nxc1 {[%clk 0:01:19]} 24. Qxc1 {[%clk 0:00:06]}  Be2 {[%clk 0:01:02]} 25. Rb3 {[%clk 0:00:06]}  Qa6 {[%clk 0:01:03]} 26. f4 {[%clk 0:00:03]}  c4 {[%clk 0:01:01]} 27. Rb4 {[%clk 0:00:03]}  Be3 {[%clk 0:01:02]} 28. Qc2 {[%clk 0:00:02]}  Bd3 {[%clk 0:01:01]} 29. Qd1 {[%clk 0:00:02]}  Bxf4 {[%clk 0:01:01]} 30. e5 {[%clk 0:00:01]}  dxe5 {[%clk 0:00:55]} 31. Bxa8 {[%clk 0:00:01]}  Qxa8+ {[%clk 0:00:55]} 32. Qf3 {[%clk 0:00:01]}  Qxf3+ {[%clk 0:00:38]} 33. Nxf3 {[%clk 0:00:02]}  e4 {[%clk 0:00:38]} 34. Nd4 {[%clk 0:00:02]}  e5 {[%clk 0:00:33]} 35. Rb8+ {[%clk 0:00:01]}  Kg7 {[%clk 0:00:33]} 36. Nb5 {[%clk 0:00:02]}  e3 {[%clk 0:00:33]} 37. Nc3 {[%clk 0:00:02]}  e2 {[%clk 0:00:32]} 38. Nxe2 {[%clk 0:00:03]}  Bxe2 {[%clk 0:00:33]} 39. a4 {[%clk 0:00:03]}  e4 {[%clk 0:00:33]} 40. a5 {[%clk 0:00:03]}  Bxb8 {[%clk 0:00:33]} 0-1


[Site "https://www.chess.com"]

[Event "Titled Tuesday Blitz February 21 Late 2023"]
[White "Goroshkov, Maksym"]
[Black "Fedoseev, Vladimir"]
[WhiteFideId "14142716"]
[BlackFideId "24130737"]
[WhiteElo "2287"]
[BlackElo "2680"]
[Result "0-1"]
[Round "02"]
[TimeControl "180+2"]
[Date "2023.02.21"]
[WhiteClock "0:00:47"]
[BlackClock "0:00:52"]

1. e4 {[%clk 0:02:52]}  c5 {[%clk 0:02:59]} 2. d4 {[%clk 0:02:50]}  cxd4 {[%clk 0:02:58]} 3. c3 {[%clk 0:02:51]}  dxc3 {[%clk 0:02:57]} 4. Nxc3 {[%clk 0:02:51]}  Nc6 {[%clk 0:02:57]} 5. Nf3 {[%clk 0:02:52]}  e6 {[%clk 0:02:53]} 6. Bc4 {[%clk 0:02:52]}  d6 {[%clk 0:02:51]} 7. O-O {[%clk 0:02:50]}  Be7 {[%clk 0:02:52]} 8. Qe2 {[%clk 0:02:49]}  Nf6 {[%clk 0:02:46]} 9. Rd1 {[%clk 0:02:49]}  O-O {[%clk 0:02:44]} 10. Bg5 {[%clk 0:02:41]}  Ne8 {[%clk 0:02:41]} 11. Bf4 {[%clk 0:02:40]}  a6 {[%clk 0:02:34]} 12. Rac1 {[%clk 0:02:35]}  b5 {[%clk 0:02:33]} 13. Bb3 {[%clk 0:02:30]}  Bb7 {[%clk 0:02:30]} 14. e5 {[%clk 0:02:28]}  d5 {[%clk 0:02:16]} 15. Nxd5 {[%clk 0:02:28]}  exd5 {[%clk 0:02:09]} 16. Bxd5 {[%clk 0:02:29]}  Nd4 {[%clk 0:02:08]} 17. Rxd4 {[%clk 0:02:10]}  Bxd5 {[%clk 0:02:06]} 18. Qd2 {[%clk 0:02:10]}  Nc7 {[%clk 0:02:01]} 19. e6 {[%clk 0:02:01]}  Bd6 {[%clk 0:01:59]} 20. exf7+ {[%clk 0:01:28]}  Rxf7 {[%clk 0:01:58]} 21. Ne5 {[%clk 0:01:10]}  Rxf4 {[%clk 0:01:40]} 22. Rxd5 {[%clk 0:01:11]}  Nxd5 {[%clk 0:01:30]} 23. Qxd5+ {[%clk 0:01:12]}  Kh8 {[%clk 0:01:07]} 24. Nc6 {[%clk 0:01:00]}  Qf6 {[%clk 0:01:03]} 25. g3 {[%clk 0:00:50]}  Rxf2 {[%clk 0:00:58]} 26. Ne5 {[%clk 0:00:51]}  Rf8 {[%clk 0:00:58]} 27. Ng4 {[%clk 0:00:50]}  Rf1+ {[%clk 0:00:58]} 28. Kg2 {[%clk 0:00:48]}  Qxb2+ {[%clk 0:00:57]} 29. Kh3 {[%clk 0:00:46]}  Qxc1 {[%clk 0:00:55]} 30. Qxd6 {[%clk 0:00:47]}  Qg5 {[%clk 0:00:52]} 0-1


[Site "https://www.chess.com"]

[Event "Titled Tuesday Blitz February 21 Late 2023"]
[White "Babazada, Khazar"]
[Black "Dobrikov, Marco"]
[WhiteFideId "13413554"]
[BlackFideId "12950378"]
[WhiteElo "2474"]
[BlackElo "2269"]
[Result "0-1"]
[Round "02"]
[TimeControl "180+2"]
[Date "2023.02.21"]
[WhiteClock "0:00:52"]
[BlackClock "0:00:21"]

1. e4 {[%clk 0:03:00]}  g6 {[%clk 0:02:59]} 2. Nc3 {[%clk 0:03:00]}  Bg7 {[%clk 0:03:00]} 3. d4 {[%clk 0:03:01]}  d6 {[%clk 0:03:00]} 4. Be3 {[%clk 0:03:00]}  a6 {[%clk 0:03:01]} 5. Qd2 {[%clk 0:03:00]}  b5 {[%clk 0:03:01]} 6. O-O-O {[%clk 0:03:00]}  Nd7 {[%clk 0:03:01]} 7. f3 {[%clk 0:03:00]}  Bb7 {[%clk 0:03:01]} 8. h4 {[%clk 0:03:00]}  h6 {[%clk 0:03:01]} 9. h5 {[%clk 0:03:00]}  g5 {[%clk 0:03:02]} 10. Nh3 {[%clk 0:03:00]}  Ngf6 {[%clk 0:02:53]} 11. Be2 {[%clk 0:02:59]}  c5 {[%clk 0:02:49]} 12. Nf2 {[%clk 0:02:36]}  Rc8 {[%clk 0:02:44]} 13. dxc5 {[%clk 0:02:34]}  Nxc5 {[%clk 0:02:36]} 14. e5 {[%clk 0:02:34]}  Nfd7 {[%clk 0:02:22]} 15. exd6 {[%clk 0:02:30]}  e6 {[%clk 0:02:21]} 16. Nfe4 {[%clk 0:02:25]}  Nxe4 {[%clk 0:02:03]} 17. Nxe4 {[%clk 0:02:24]}  Bd5 {[%clk 0:01:52]} 18. Kb1 {[%clk 0:02:16]}  f5 {[%clk 0:01:47]} 19. Nc3 {[%clk 0:01:52]}  Bxc3 {[%clk 0:01:27]} 20. bxc3 {[%clk 0:01:53]}  Qa5 {[%clk 0:01:27]} 21. c4 {[%clk 0:01:53]}  Qxd2 {[%clk 0:01:27]} 22. Rxd2 {[%clk 0:01:53]}  bxc4 {[%clk 0:01:27]} 23. Ka1 {[%clk 0:01:49]}  Rc6 {[%clk 0:01:25]} 24. Rb1 {[%clk 0:01:49]}  O-O {[%clk 0:01:08]} 25. f4 {[%clk 0:01:40]}  g4 {[%clk 0:01:05]} 26. Bd4 {[%clk 0:01:33]}  Rb8 {[%clk 0:01:01]} 27. Rxb8+ {[%clk 0:01:29]}  Nxb8 {[%clk 0:01:02]} 28. Be5 {[%clk 0:01:30]}  Nd7 {[%clk 0:01:02]} 29. Rd1 {[%clk 0:01:31]}  Bxg2 {[%clk 0:00:55]} 30. Rb1 {[%clk 0:01:31]}  Rc5 {[%clk 0:00:47]} 31. Bc3 {[%clk 0:01:26]}  Bd5 {[%clk 0:00:47]} 32. a4 {[%clk 0:01:21]}  Kf7 {[%clk 0:00:41]} 33. Kb2 {[%clk 0:01:18]}  Rc6 {[%clk 0:00:40]} 34. Rg1 {[%clk 0:01:15]}  Rxd6 {[%clk 0:00:39]} 35. Kc1 {[%clk 0:01:15]}  Rc6 {[%clk 0:00:35]} 36. Bxg4 {[%clk 0:01:11]}  fxg4 {[%clk 0:00:34]} 37. Rxg4 {[%clk 0:01:12]}  Nf8 {[%clk 0:00:25]} 38. Rg7+ {[%clk 0:01:09]}  Ke8 {[%clk 0:00:25]} 39. Bb4 {[%clk 0:01:09]}  Rb6 {[%clk 0:00:26]} 40. c3 {[%clk 0:01:07]}  a5 {[%clk 0:00:24]} 41. Bxa5 {[%clk 0:01:06]}  Rb7 {[%clk 0:00:22]} 42. Rg8 {[%clk 0:01:01]}  Rf7 {[%clk 0:00:22]} 43. Bb4 {[%clk 0:00:58]}  Rxf4 {[%clk 0:00:22]} 44. Kd2 {[%clk 0:00:53]}  e5 {[%clk 0:00:21]} 45. a5 {[%clk 0:00:52]}  Bxg8 {[%clk 0:00:21]} 0-1


[Site "https://www.chess.com"]

[Event "Titled Tuesday Blitz February 21 Late 2023"]
[White "Jeet, Jain"]
[Black "Makarian, Rudik"]
[WhiteFideId "5073022"]
[BlackFideId "44105681"]
[WhiteElo "2199"]
[BlackElo "2545"]
[Result "1-0"]
[Round "02"]
[TimeControl "180+2"]
[Date "2023.02.21"]
[WhiteClock "0:00:20"]
[BlackClock "0:00:58"]

1. d4 {[%clk 0:03:00]}  Nf6 {[%clk 0:02:59]} 2. Nf3 {[%clk 0:03:00]}  c5 {[%clk 0:02:59]} 3. e3 {[%clk 0:02:57]}  d5 {[%clk 0:02:59]} 4. b3 {[%clk 0:02:56]}  cxd4 {[%clk 0:02:58]} 5. exd4 {[%clk 0:02:56]}  Nc6 {[%clk 0:02:59]} 6. Bb2 {[%clk 0:02:56]}  g6 {[%clk 0:03:00]} 7. Bd3 {[%clk 0:02:53]}  Bg7 {[%clk 0:03:00]} 8. O-O {[%clk 0:02:53]}  O-O {[%clk 0:03:01]} 9. a3 {[%clk 0:02:53]}  Ne4 {[%clk 0:02:58]} 10. Nbd2 {[%clk 0:02:47]}  Bf5 {[%clk 0:02:58]} 11. Re1 {[%clk 0:02:42]}  Nd6 {[%clk 0:02:57]} 12. Nf1 {[%clk 0:02:08]}  e6 {[%clk 0:02:55]} 13. Ng3 {[%clk 0:02:05]}  Bg4 {[%clk 0:02:54]} 14. c3 {[%clk 0:01:50]}  b5 {[%clk 0:02:50]} 15. h3 {[%clk 0:01:49]}  Bf5 {[%clk 0:02:47]} 16. Nxf5 {[%clk 0:01:47]}  exf5 {[%clk 0:02:48]} 17. Ne5 {[%clk 0:01:39]}  Qc7 {[%clk 0:02:32]} 18. a4 {[%clk 0:01:39]}  b4 {[%clk 0:02:22]} 19. Nxc6 {[%clk 0:01:38]}  Qxc6 {[%clk 0:02:23]} 20. cxb4 {[%clk 0:01:38]}  Qb6 {[%clk 0:02:23]} 21. b5 {[%clk 0:01:31]}  Bxd4 {[%clk 0:02:23]} 22. Bxd4 {[%clk 0:01:31]}  Qxd4 {[%clk 0:02:24]} 23. Be2 {[%clk 0:01:25]}  Qb6 {[%clk 0:02:14]} 24. Bf3 {[%clk 0:01:06]}  Ne4 {[%clk 0:02:14]} 25. Bxe4 {[%clk 0:01:04]}  dxe4 {[%clk 0:02:15]} 26. Qe2 {[%clk 0:01:00]}  a6 {[%clk 0:02:08]} 27. a5 {[%clk 0:00:54]}  Qxb5 {[%clk 0:02:06]} 28. Qxb5 {[%clk 0:00:54]}  axb5 {[%clk 0:02:07]} 29. Rec1 {[%clk 0:00:50]}  Rfd8 {[%clk 0:01:22]} 30. Rc5 {[%clk 0:00:47]}  b4 {[%clk 0:01:21]} 31. Rb5 {[%clk 0:00:43]}  Rd4 {[%clk 0:01:18]} 32. a6 {[%clk 0:00:41]}  Rd6 {[%clk 0:01:15]} 33. a7 {[%clk 0:00:39]}  Rdd8 {[%clk 0:01:13]} 34. Rxb4 {[%clk 0:00:39]}  Kg7 {[%clk 0:01:12]} 35. Rb7 {[%clk 0:00:37]}  f4 {[%clk 0:01:12]} 36. b4 {[%clk 0:00:35]}  e3 {[%clk 0:01:11]} 37. fxe3 {[%clk 0:00:36]}  fxe3 {[%clk 0:01:12]} 38. Kf1 {[%clk 0:00:27]}  Kf6 {[%clk 0:01:10]} 39. b5 {[%clk 0:00:26]}  Ke5 {[%clk 0:01:10]} 40. b6 {[%clk 0:00:24]}  f5 {[%clk 0:01:03]} 41. Re7+ {[%clk 0:00:20]}  Kf4 {[%clk 0:01:03]} 42. b7 {[%clk 0:00:19]}  Rxa7 {[%clk 0:01:01]} 43. Rxa7 {[%clk 0:00:18]}  Rd1+ {[%clk 0:01:02]} 44. Ke2 {[%clk 0:00:19]}  Rd2+ {[%clk 0:01:03]} 45. Ke1 {[%clk 0:00:19]}  Rb2 {[%clk 0:01:04]} 46. Ra4+ {[%clk 0:00:19]}  Kg3 {[%clk 0:01:02]} 47. Ra8 {[%clk 0:00:19]}  Rb1+ {[%clk 0:00:59]} 48. Ke2 {[%clk 0:00:19]}  Rb2+ {[%clk 0:00:58]} 49. Kxe3 {[%clk 0:00:20]} 1-0


[Site "https://www.chess.com"]

[Event "Titled Tuesday Blitz February 21 Late 2023"]
[White "Tabatabaei, M. Amin"]
[Black "Sielecki, Christof"]
[WhiteFideId "12521213"]
[BlackFideId "4620437"]
[WhiteElo "2677"]
[BlackElo "2419"]
[Result "1-0"]
[Round "02"]
[TimeControl "180+2"]
[Date "2023.02.21"]
[WhiteClock "0:01:35"]
[BlackClock "0:00:15"]

1. d4 {[%clk 0:02:57]}  d5 {[%clk 0:02:59]} 2. Nf3 {[%clk 0:02:57]}  Nf6 {[%clk 0:02:59]} 3. c3 {[%clk 0:02:57]}  e6 {[%clk 0:02:57]} 4. Bf4 {[%clk 0:02:57]}  Bd6 {[%clk 0:02:57]} 5. e3 {[%clk 0:02:57]}  O-O {[%clk 0:02:56]} 6. Nbd2 {[%clk 0:02:57]}  c5 {[%clk 0:02:56]} 7. Ne5 {[%clk 0:02:55]}  Nc6 {[%clk 0:02:54]} 8. Bd3 {[%clk 0:02:51]}  Qc7 {[%clk 0:02:47]} 9. Ndf3 {[%clk 0:02:51]}  cxd4 {[%clk 0:02:36]} 10. exd4 {[%clk 0:02:42]}  Ne4 {[%clk 0:02:35]} 11. Bg3 {[%clk 0:02:36]}  f6 {[%clk 0:02:14]} 12. Nxc6 {[%clk 0:02:34]}  Qxc6 {[%clk 0:02:05]} 13. Qe2 {[%clk 0:02:25]}  Bd7 {[%clk 0:01:56]} 14. Bxd6 {[%clk 0:02:23]}  Nxd6 {[%clk 0:01:54]} 15. O-O {[%clk 0:02:23]}  Rae8 {[%clk 0:01:53]} 16. Rfe1 {[%clk 0:02:24]}  Qb6 {[%clk 0:01:37]} 17. Qc2 {[%clk 0:02:20]}  f5 {[%clk 0:00:50]} 18. Ne5 {[%clk 0:02:19]}  Bb5 {[%clk 0:00:50]} 19. Re2 {[%clk 0:02:14]}  Bxd3 {[%clk 0:00:50]} 20. Qxd3 {[%clk 0:02:15]}  Qb5 {[%clk 0:00:47]} 21. Rae1 {[%clk 0:02:05]}  Qxd3 {[%clk 0:00:41]} 22. Nxd3 {[%clk 0:02:06]}  Rf6 {[%clk 0:00:36]} 23. h4 {[%clk 0:02:04]}  b6 {[%clk 0:00:36]} 24. Nf4 {[%clk 0:01:58]}  Kf7 {[%clk 0:00:35]} 25. g3 {[%clk 0:01:57]}  g6 {[%clk 0:00:30]} 26. Nd3 {[%clk 0:01:55]}  h6 {[%clk 0:00:28]} 27. Ne5+ {[%clk 0:01:55]}  Kg7 {[%clk 0:00:28]} 28. Nc6 {[%clk 0:01:53]}  a5 {[%clk 0:00:23]} 29. Ne5 {[%clk 0:01:52]}  g5 {[%clk 0:00:23]} 30. Nd7 {[%clk 0:01:47]}  Rf7 {[%clk 0:00:20]} 31. Nxb6 {[%clk 0:01:47]}  f4 {[%clk 0:00:20]} 32. Rxe6 {[%clk 0:01:41]}  Rxe6 {[%clk 0:00:19]} 33. Rxe6 {[%clk 0:01:42]}  Ne4 {[%clk 0:00:19]} 34. Nxd5 {[%clk 0:01:36]}  Nd2 {[%clk 0:00:20]} 35. h5 {[%clk 0:01:32]}  fxg3 {[%clk 0:00:19]} 36. fxg3 {[%clk 0:01:32]}  Rf1+ {[%clk 0:00:18]} 37. Kg2 {[%clk 0:01:33]}  Rb1 {[%clk 0:00:19]} 38. Rg6+ {[%clk 0:01:32]}  Kf7 {[%clk 0:00:18]} 39. Rxh6 {[%clk 0:01:33]}  Rxb2 {[%clk 0:00:18]} 40. Rf6+ {[%clk 0:01:34]}  Kg8 {[%clk 0:00:15]} 41. Rf2 {[%clk 0:01:35]} 1-0


[Site "https://www.chess.com"]

[Event "Titled Tuesday Blitz February 21 Late 2023"]
[White "Svane, Frederik"]
[Black "Vovk, Orest"]
[WhiteFideId "12923044"]
[BlackFideId "14113490"]
[WhiteElo "2600"]
[BlackElo "2315"]
[Result "1-0"]
[Round "02"]
[TimeControl "180+2"]
[Date "2023.02.21"]
[WhiteClock "0:00:47"]
[BlackClock "0:00:02"]

1. c4 {[%clk 0:03:00]}  g5 {[%clk 0:02:53]} 2. d4 {[%clk 0:03:00]}  h6 {[%clk 0:02:52]} 3. h4 {[%clk 0:03:00]}  g4 {[%clk 0:02:51]} 4. Nc3 {[%clk 0:02:59]}  Bg7 {[%clk 0:02:51]} 5. e3 {[%clk 0:02:58]}  h5 {[%clk 0:02:44]} 6. Bd3 {[%clk 0:02:57]}  c5 {[%clk 0:02:44]} 7. Nge2 {[%clk 0:02:56]}  d6 {[%clk 0:02:43]} 8. d5 {[%clk 0:02:50]}  Nd7 {[%clk 0:02:40]} 9. e4 {[%clk 0:02:44]}  Ne5 {[%clk 0:02:40]} 10. Bf4 {[%clk 0:02:33]}  Nxd3+ {[%clk 0:02:37]} 11. Qxd3 {[%clk 0:02:34]}  Qb6 {[%clk 0:02:12]} 12. O-O {[%clk 0:02:31]}  Bf6 {[%clk 0:02:03]} 13. Bg3 {[%clk 0:02:21]}  Bd7 {[%clk 0:02:02]} 14. a4 {[%clk 0:02:18]}  Qa5 {[%clk 0:01:55]} 15. Rfe1 {[%clk 0:02:13]}  O-O-O {[%clk 0:01:53]} 16. Qe3 {[%clk 0:02:04]}  e5 {[%clk 0:01:25]} 17. dxe6 {[%clk 0:02:01]}  Bxe6 {[%clk 0:01:25]} 18. Rad1 {[%clk 0:01:53]}  Be5 {[%clk 0:00:59]} 19. Bxe5 {[%clk 0:01:50]}  dxe5 {[%clk 0:01:00]} 20. Rxd8+ {[%clk 0:01:50]}  Kxd8 {[%clk 0:01:01]} 21. Qg5+ {[%clk 0:01:47]}  Ne7 {[%clk 0:00:49]} 22. Qxe5 {[%clk 0:01:45]}  Re8 {[%clk 0:00:44]} 23. Rd1+ {[%clk 0:01:31]}  Kc8 {[%clk 0:00:44]} 24. Nb5 {[%clk 0:01:32]}  Nc6 {[%clk 0:00:37]} 25. Qxc5 {[%clk 0:01:20]}  Rd8 {[%clk 0:00:21]} 26. Rxd8+ {[%clk 0:01:14]}  Kxd8 {[%clk 0:00:13]} 27. Qd6+ {[%clk 0:00:58]}  Kc8 {[%clk 0:00:10]} 28. Nf4 {[%clk 0:00:57]}  a6 {[%clk 0:00:02]} 29. Nxe6 {[%clk 0:00:52]}  axb5 {[%clk 0:00:02]} 30. Qf8+ {[%clk 0:00:50]}  Kd7 {[%clk 0:00:03]} 31. Qxf7+ {[%clk 0:00:51]}  Kd6 {[%clk 0:00:02]} 32. axb5 {[%clk 0:00:47]}  Qe1+ {[%clk 0:00:02]} 33. Kh2 {[%clk 0:00:47]}  Ne5 {[%clk 0:00:02]} 34. c5# {[%clk 0:00:47]} 1-0


[Site "https://www.chess.com"]

[Event "Titled Tuesday Blitz February 21 Late 2023"]
[White "Kourkoulos-Arditis, Stamatis"]
[Black "Rasulov, Vugar"]
[WhiteFideId "4221990"]
[BlackFideId "13402390"]
[WhiteElo "2539"]
[BlackElo "2523"]
[Result "0-1"]
[Round "02"]
[TimeControl "180+2"]
[Date "2023.02.21"]
[WhiteClock "0:00:05"]
[BlackClock "0:00:05"]

1. b3 {[%clk 0:03:00]}  e5 {[%clk 0:02:59]} 2. Bb2 {[%clk 0:03:01]}  Nc6 {[%clk 0:02:59]} 3. e3 {[%clk 0:03:02]}  g6 {[%clk 0:02:57]} 4. Bb5 {[%clk 0:02:56]}  Bg7 {[%clk 0:02:57]} 5. Nf3 {[%clk 0:02:53]}  Nge7 {[%clk 0:02:54]} 6. d4 {[%clk 0:02:51]}  e4 {[%clk 0:02:36]} 7. Nfd2 {[%clk 0:02:48]}  d5 {[%clk 0:02:36]} 8. O-O {[%clk 0:02:31]}  a6 {[%clk 0:02:30]} 9. Bxc6+ {[%clk 0:02:29]}  bxc6 {[%clk 0:02:30]} 10. c4 {[%clk 0:02:27]}  O-O {[%clk 0:02:30]} 11. Nc3 {[%clk 0:02:28]}  Be6 {[%clk 0:02:24]} 12. Rc1 {[%clk 0:02:25]}  f5 {[%clk 0:02:22]} 13. Ne2 {[%clk 0:02:13]}  g5 {[%clk 0:02:17]} 14. f4 {[%clk 0:02:12]}  h6 {[%clk 0:02:14]} 15. Ba3 {[%clk 0:02:08]}  Rf7 {[%clk 0:02:08]} 16. Qc2 {[%clk 0:02:02]}  Ng6 {[%clk 0:02:02]} 17. cxd5 {[%clk 0:01:38]}  Bxd5 {[%clk 0:02:03]} 18. Nc4 {[%clk 0:01:34]}  a5 {[%clk 0:01:47]} 19. Ne5 {[%clk 0:01:34]}  Nxe5 {[%clk 0:01:47]} 20. dxe5 {[%clk 0:01:34]}  a4 {[%clk 0:01:43]} 21. bxa4 {[%clk 0:01:32]}  Bf8 {[%clk 0:01:28]} 22. Bxf8 {[%clk 0:01:29]}  Qxf8 {[%clk 0:01:29]} 23. Nd4 {[%clk 0:01:26]}  Qa3 {[%clk 0:01:28]} 24. Qf2 {[%clk 0:01:15]}  g4 {[%clk 0:01:18]} 25. e6 {[%clk 0:00:31]}  Rf6 {[%clk 0:01:16]} 26. Nxc6 {[%clk 0:00:31]}  Bxe6 {[%clk 0:00:58]} 27. Nd4 {[%clk 0:00:27]}  c5 {[%clk 0:00:50]} 28. Nb5 {[%clk 0:00:12]}  Qxa4 {[%clk 0:00:50]} 29. Nc7 {[%clk 0:00:10]}  Rc8 {[%clk 0:00:38]} 30. Qh4 {[%clk 0:00:09]}  Kf7 {[%clk 0:00:30]} 31. Qh5+ {[%clk 0:00:09]}  Ke7 {[%clk 0:00:30]} 32. Rxc5 {[%clk 0:00:07]}  Qa3 {[%clk 0:00:18]} 33. Nd5+ {[%clk 0:00:07]}  Kd6 {[%clk 0:00:18]} 34. Rxc8 {[%clk 0:00:07]}  Bxd5 {[%clk 0:00:11]} 35. Qe8 {[%clk 0:00:07]}  Qxe3+ {[%clk 0:00:10]} 36. Kh1 {[%clk 0:00:07]}  Qb6 {[%clk 0:00:08]} 37. Rd8+ {[%clk 0:00:05]}  Kc5 {[%clk 0:00:06]} 38. Qe5 {[%clk 0:00:03]}  Qxd8 {[%clk 0:00:06]} 39. Rc1+ {[%clk 0:00:03]}  Kb6 {[%clk 0:00:06]} 40. Qd4+ {[%clk 0:00:03]}  Kb7 {[%clk 0:00:06]} 41. Qb4+ {[%clk 0:00:03]}  Rb6 {[%clk 0:00:06]} 42. Qd4 {[%clk 0:00:03]}  Qd6 {[%clk 0:00:06]} 43. Qg7+ {[%clk 0:00:04]}  Ka6 {[%clk 0:00:06]} 44. h3 {[%clk 0:00:04]}  e3 {[%clk 0:00:07]} 45. Qh8 {[%clk 0:00:04]}  e2 {[%clk 0:00:06]} 46. Qc3 {[%clk 0:00:05]}  Ka7 {[%clk 0:00:05]} 47. Qd3 {[%clk 0:00:05]}  Bxg2+ {[%clk 0:00:05]} 0-1


[Site "https://www.chess.com"]

[Event "Titled Tuesday Blitz February 21 Late 2023"]
[White "Perez Ponsa, Federico"]
[Black "Aggelis, Nikolaos"]
[WhiteFideId "117927"]
[BlackFideId "4213220"]
[WhiteElo "2532"]
[BlackElo "2270"]
[Result "1/2-1/2"]
[Round "02"]
[TimeControl "180+2"]
[Date "2023.02.21"]
[WhiteClock "0:00:05"]
[BlackClock "0:00:08"]

1. e4 {[%clk 0:03:00]}  c6 {[%clk 0:03:00]} 2. d4 {[%clk 0:02:58]}  d5 {[%clk 0:03:00]} 3. e5 {[%clk 0:02:58]}  c5 {[%clk 0:03:00]} 4. Nf3 {[%clk 0:02:58]}  cxd4 {[%clk 0:02:49]} 5. Qxd4 {[%clk 0:02:57]}  Nc6 {[%clk 0:02:48]} 6. Qf4 {[%clk 0:02:58]}  Qc7 {[%clk 0:02:14]} 7. Nc3 {[%clk 0:02:55]}  Be6 {[%clk 0:02:08]} 8. Bd3 {[%clk 0:02:47]}  g6 {[%clk 0:02:08]} 9. O-O {[%clk 0:02:43]}  Bg7 {[%clk 0:02:02]} 10. Re1 {[%clk 0:02:43]}  a6 {[%clk 0:01:46]} 11. Qg3 {[%clk 0:02:26]}  Nh6 {[%clk 0:01:42]} 12. Bxh6 {[%clk 0:02:14]}  Bxh6 {[%clk 0:01:41]} 13. Ng5 {[%clk 0:02:14]}  Bxg5 {[%clk 0:01:33]} 14. Qxg5 {[%clk 0:02:15]}  O-O-O {[%clk 0:01:31]} 15. Rad1 {[%clk 0:02:12]}  h6 {[%clk 0:01:29]} 16. Qg3 {[%clk 0:02:11]}  g5 {[%clk 0:01:24]} 17. Na4 {[%clk 0:02:07]}  Qa5 {[%clk 0:01:22]} 18. b3 {[%clk 0:01:59]}  Rdg8 {[%clk 0:01:10]} 19. Qe3 {[%clk 0:01:58]}  Kb8 {[%clk 0:01:07]} 20. Qc5 {[%clk 0:01:54]}  Qxc5 {[%clk 0:00:55]} 21. Nxc5 {[%clk 0:01:55]}  Nb4 {[%clk 0:00:38]} 22. a3 {[%clk 0:01:44]}  Nc6 {[%clk 0:00:36]} 23. b4 {[%clk 0:01:38]}  Kc7 {[%clk 0:00:36]} 24. f3 {[%clk 0:01:35]}  Ra8 {[%clk 0:00:34]} 25. Kf2 {[%clk 0:01:34]}  Rhd8 {[%clk 0:00:33]} 26. c3 {[%clk 0:01:29]}  Bc8 {[%clk 0:00:33]} 27. Nb3 {[%clk 0:01:20]}  e6 {[%clk 0:00:28]} 28. Re2 {[%clk 0:01:17]}  b6 {[%clk 0:00:29]} 29. h4 {[%clk 0:01:17]}  Bb7 {[%clk 0:00:25]} 30. Rh1 {[%clk 0:01:15]}  Rh8 {[%clk 0:00:24]} 31. h5 {[%clk 0:01:11]}  Na7 {[%clk 0:00:20]} 32. Rc1 {[%clk 0:01:11]}  Rac8 {[%clk 0:00:19]} 33. Nd4 {[%clk 0:01:10]}  Kb8 {[%clk 0:00:16]} 34. Ke3 {[%clk 0:01:07]}  Rc7 {[%clk 0:00:16]} 35. Kd2 {[%clk 0:01:07]}  Rhc8 {[%clk 0:00:17]} 36. Rf1 {[%clk 0:01:06]}  Rxc3 {[%clk 0:00:15]} 37. f4 {[%clk 0:01:06]}  g4 {[%clk 0:00:15]} 38. f5 {[%clk 0:01:06]}  Rxa3 {[%clk 0:00:14]} 39. fxe6 {[%clk 0:01:05]}  fxe6 {[%clk 0:00:15]} 40. Nxe6 {[%clk 0:01:06]}  Nc6 {[%clk 0:00:15]} 41. b5 {[%clk 0:00:39]}  axb5 {[%clk 0:00:15]} 42. Bxb5 {[%clk 0:00:36]}  Ra2+ {[%clk 0:00:15]} 43. Ke3 {[%clk 0:00:33]}  Rxe2+ {[%clk 0:00:16]} 44. Bxe2 {[%clk 0:00:33]}  Nxe5 {[%clk 0:00:17]} 45. Rf5 {[%clk 0:00:28]}  Nc4+ {[%clk 0:00:17]} 46. Kd4 {[%clk 0:00:28]}  Re8 {[%clk 0:00:17]} 47. Rf6 {[%clk 0:00:26]}  Bc8 {[%clk 0:00:15]} 48. Bxg4 {[%clk 0:00:26]}  Bxe6 {[%clk 0:00:08]} 49. Bxe6 {[%clk 0:00:24]}  Na3 {[%clk 0:00:05]} 50. Rxh6 {[%clk 0:00:17]}  Nb5+ {[%clk 0:00:06]} 51. Kd3 {[%clk 0:00:17]}  Nc7 {[%clk 0:00:06]} 52. Bf7 {[%clk 0:00:16]}  Rf8 {[%clk 0:00:06]} 53. Rxb6+ {[%clk 0:00:11]}  Kc8 {[%clk 0:00:06]} 54. Rf6 {[%clk 0:00:11]}  Kd8 {[%clk 0:00:06]} 55. Rf3 {[%clk 0:00:08]}  Ke7 {[%clk 0:00:06]} 56. Bg6 {[%clk 0:00:08]}  Rxf3+ {[%clk 0:00:06]} 57. gxf3 {[%clk 0:00:08]}  Kf6 {[%clk 0:00:07]} 58. Kd4 {[%clk 0:00:08]}  Ne6+ {[%clk 0:00:07]} 59. Kxd5 {[%clk 0:00:08]}  Nf4+ {[%clk 0:00:08]} 60. Ke4 {[%clk 0:00:09]}  Nh3 {[%clk 0:00:07]} 61. Ke3 {[%clk 0:00:05]}  Ng5 {[%clk 0:00:06]} 62. f4 {[%clk 0:00:03]}  Ne6 {[%clk 0:00:06]} 63. Be8 {[%clk 0:00:02]}  Ng7 {[%clk 0:00:06]} 64. h6 {[%clk 0:00:02]}  Nxe8 {[%clk 0:00:06]} 65. h7 {[%clk 0:00:03]}  Kg7 {[%clk 0:00:06]} 66. f5 {[%clk 0:00:04]}  Nf6 {[%clk 0:00:06]} 67. h8=Q+ {[%clk 0:00:03]}  Kxh8 {[%clk 0:00:06]} 68. Kd4 {[%clk 0:00:04]}  Kg7 {[%clk 0:00:07]} 69. Ke5 {[%clk 0:00:05]}  Nh5 {[%clk 0:00:07]} 70. f6+ {[%clk 0:00:05]}  Nxf6 {[%clk 0:00:08]} 1/2-1/2


[Site "https://www.chess.com"]